fUSD/lending_fUSD_20241203
["ID","MTS","AMOUNT","RATE_DAILY","PERIOD"]
[344059120,1733260233975,-150.0,7.698e-05,2]
[344059121,1733260233986,-150.0,7.699e-05,2]
[344059122,1733260233996,-333.37446726,7.699e-05,2]
[344059123,1733260234006,-305.91281177,7.699e-05,2]
[344059124,1733260234016,-1138.9446639,7.699e-05,2]
[344059125,1733260234026,-1138.9446639,7.699e-05,2]
[344059126,1733260234036,-900.0,7.699e-05,2]
[344059127,1733260234046,-402.82666087,7.699e-05,2]
[344059129,1733260234055,-1243.76,7.699e-05,2]
[344059130,1733260234064,-5672678.95160143,7.7e-05,2]
[344059131,1733260234078,-487940.0,7.7e-05,2]
[344059133,1733260234124,-524.05052353,7.7e-05,2]
[344059147,1733260234235,-336.50062,7.7e-05,2]
[344059154,1733260238230,-599.27299999,7.7e-05,2]
[344059155,1733260238251,-981.39402762,7.7e-05,2]
[344059156,1733260238263,-3015.33196632,7.7e-05,2]
[344059157,1733260238287,-16149.0561489,7.7e-05,2]
[344059158,1733260238361,-1109.76612253,7.7e-05,2]
[344059159,1733260238385,-301.91055826,7.7e-05,2]
[344059160,1733260238396,-1799.59999998,7.7e-05,2]
[344059165,1733260239807,-48578.78937703,7.7e-05,2]
[344059167,1733260239866,-26891.91177016,7.7e-05,2]
[344059168,1733260239879,-641.8251675,7.7e-05,2]
[344059169,1733260239891,-359.37499999,7.7e-05,2]
[344059170,1733260240041,-1809.50000001,7.7e-05,2]
[344059171,1733260240053,-534.6771047,7.7e-05,2]
[344059172,1733260240064,-1066.68274069,7.7e-05,2]
[344059173,1733260240101,-1541.3607,7.7e-05,2]
[344059180,1733260243478,-1097.0,7.624e-05,2]
[344059181,1733260243489,-4993.78481144,7.7e-05,2]
[344059182,1733260243501,-2975.23039374,7.7e-05,2]
[344059183,1733260243516,-3002.4148437,7.7e-05,2]
[344059184,1733260243527,-1104.7999998,7.7e-05,2]
[344059187,1733260243583,-22711.12070833,7.7e-05,2]
[344059188,1733260243595,-5024.11636116,7.7e-05,2]
[344059189,1733260243607,-106557.6596586,7.7e-05,2]
[344059190,1733260243625,-21677.39999994,7.7e-05,2]
[344059191,1733260243637,-3904.72835727,7.7e-05,2]
[344059192,1733260243653,-19032.81695623,7.7e-05,2]
[344059193,1733260243664,-4652.29875092,7.7e-05,2]
[344059194,1733260243684,-267.38,7.7e-05,2]
[344059199,1733260245892,-3302.75594629,7.7e-05,2]
[344059200,1733260245912,-2275.4114334,7.7e-05,2]
[344059201,1733260246011,-266.03731268,7.7e-05,2]
[344059202,1733260246023,-302.2315015,7.7e-05,2]
[344059210,1733260259368,200.0,7e-05,2]
[344059211,1733260261466,500.0,7.1e-05,2]
[344059216,1733260370306,500.0,6.611e-05,3]
[344059217,1733260449285,3425.3090393,7.162e-05,2]
[344059218,1733260590176,-800.0,7.2e-05,2]
[344059219,1733260590200,-1000.0,7.3e-05,2]
[344059220,1733260590224,-1300.0,7.4e-05,2]
[344059221,1733260590246,-3001.82258396,7.4e-05,2]
[344059222,1733260590271,-150.0,7.443e-05,2]
[344059223,1733260590294,-150.0,7.468e-05,2]
[344059224,1733260590320,-150.0,7.478e-05,2]
[344059225,1733260590344,-150.0,7.484e-05,2]
[344059226,1733260590367,-150.0,7.498e-05,2]
[344059227,1733260590391,-150.0,7.499e-05,2]
[344059228,1733260590414,-200.0,7.5e-05,2]
[344059229,1733260590437,-150.0,7.503e-05,2]
[344059230,1733260590462,-150.0,7.504e-05,2]
[344059231,1733260590486,-150.0,7.504e-05,2]
[344059232,1733260590508,-150.0,7.507e-05,2]
[344059233,1733260590535,-150.0,7.51e-05,2]
[344059234,1733260590560,-150.0,7.513e-05,2]
[344059235,1733260590584,-150.0,7.523e-05,2]
[344059236,1733260590608,-150.0,7.529e-05,2]
[344059237,1733260590639,-150.0,7.544e-05,2]
[344059238,1733260590667,-150.0,7.547e-05,2]
[344059239,1733260590696,-150.0,7.585e-05,2]
[344059240,1733260590725,-150.0,7.588e-05,2]
[344059241,1733260590753,-200.0,7.6e-05,2]
[344059242,1733260590781,-2500.0,7.6e-05,2]
[344059243,1733260590819,-2192.0,7.623e-05,2]
[344059244,1733260590852,-150.0,7.623e-05,2]
[344059245,1733260590880,-12116.98979711,7.623e-05,2]
[344059246,1733260590910,-150.0,7.627e-05,2]
[344059247,1733260590940,-150.0,7.636e-05,2]
[344059248,1733260590971,-150.0,7.637e-05,2]
[344059249,1733260591002,-150.0,7.64e-05,2]
[344059250,1733260591033,-150.0,7.642e-05,2]
[344059251,1733260591063,-150.0,7.642e-05,2]
[344059252,1733260591570,-285.20862926,7.647e-05,2]
[344059253,1733260591600,-150.0,7.653e-05,2]
[344059254,1733260591626,-150.0,7.653e-05,2]
[344059255,1733260591651,-150.0,7.662e-05,2]
[344059256,1733260591675,-150.0,7.664e-05,2]
[344059257,1733260591699,-150.0,7.666e-05,2]
[344059258,1733260591722,-150.0,7.688e-05,2]
[344059259,1733260591746,-6279.6801189,7.69e-05,2]
[344059260,1733260591771,-150.0,7.691e-05,2]
[344059261,1733260591794,-150.0,7.694e-05,2]
[344059262,1733260591820,-981.0662257,7.695e-05,2]
[344059263,1733260591843,-1564.0553597,7.695e-05,2]
[344059264,1733260591868,-150.0,7.698e-05,2]
[344059265,1733260591893,-150.0,7.698e-05,2]
[344059266,1733260591918,-150.0,7.698e-05,2]
[344059267,1733260591942,-150.0,7.698e-05,2]
[344059268,1733260591966,-150.0,7.698e-05,2]
[344059269,1733260591995,-150.0,7.698e-05,2]
[344059270,1733260592021,-150.0,7.698e-05,2]
[344059271,1733260592051,-150.0,7.698e-05,2]
[344059272,1733260592076,-150.0,7.698e-05,2]
[344059273,1733260592099,-150.0,7.698e-05,2]
[344059274,1733260592123,-150.0,7.698e-05,2]
[344059275,1733260592146,-150.0,7.698e-05,2]
[344059276,1733260592169,-150.0,7.698e-05,2]
[344059277,1733260592195,-150.0,7.698e-05,2]
[344059278,1733260592218,-150.0,7.698e-05,2]
[344059279,1733260592241,-150.0,7.698e-05,2]
[344059280,1733260592263,-1191.94,7.699e-05,2]
[344059281,1733260592291,-959037.23728537,7.7e-05,2]
[344059282,1733260600671,-1000000.0,7.7e-05,2]
[344059283,1733260622497,-178.96,7.258e-05,2]
[344059284,1733260622523,-686.6237247,7.689e-05,2]
[344059285,1733260622547,-591.8363762,7.695e-05,2]
[344059286,1733260622571,-150.0,7.699e-05,2]
[344059287,1733260622604,-998392.5798991,7.7e-05,2]
[344059288,1733260678624,10000.0,0.00023,120]
[344059289,1733260685064,10000.0,0.00023,120]
[344059290,1733260692663,250.0,7.162e-05,2]
[344059291,1733260693099,10000.0,0.00023,120]
[344059292,1733260726287,10000.0,0.00023,120]
[344059296,1733260738898,10000.0,0.00023,120]
[344059297,1733260752995,7052.0,0.00023,120]
[344059298,1733260797867,300.0,0.00023,120]
[344059300,1733260908705,150.0,0.00023,120]
[344059301,1733260923890,16082.29,7.095e-05,2]
[344059312,1733261277449,513.37,6.588e-05,2]
[344059331,1733261368627,250.0,6.588e-05,2]
[344059365,1733261432268,-15000.0,7.398e-05,2]
[344059366,1733261432279,-513.37,7.412e-05,2]
[344059367,1733261432293,-150.0,7.428e-05,2]
[344059368,1733261432303,-150.0,7.431e-05,2]
[344059369,1733261432313,-150.0,7.432e-05,2]
[344059370,1733261432323,-150.0,7.44e-05,2]
[344059371,1733261432333,-150.0,7.449e-05,2]
[344059372,1733261432344,-150.0,7.45e-05,2]
[344059374,1733261432354,-150.0,7.452e-05,2]
[344059376,1733261432363,-914.41272167,7.452e-05,2]
[344059378,1733261432374,-150.0,7.464e-05,2]
[344059380,1733261432383,-150.0,7.466e-05,2]
[344059382,1733261432392,-150.0,7.469e-05,2]
[344059384,1733261432401,-150.0,7.474e-05,2]
[344059386,1733261432410,-150.0,7.489e-05,2]
[344059388,1733261432419,-150.0,7.49e-05,2]
[344059390,1733261432428,-150.0,7.492e-05,2]
[344059392,1733261432437,-150.0,7.498e-05,2]
[344059394,1733261432446,-150.0,7.502e-05,2]
[344059396,1733261432455,-150.0,7.503e-05,2]
[344059398,1733261432465,-150.0,7.504e-05,2]
[344059400,1733261432474,-150.0,7.504e-05,2]
[344059402,1733261432482,-150.0,7.505e-05,2]
[344059403,1733261432491,-150.0,7.509e-05,2]
[344059405,1733261432502,-150.0,7.512e-05,2]
[344059410,1733261432511,-150.0,7.515e-05,2]
[344059412,1733261432521,-150.0,7.517e-05,2]
[344059414,1733261432530,-150.0,7.517e-05,2]
[344059416,1733261432539,-150.0,7.517e-05,2]
[344059418,1733261432548,-150.0,7.528e-05,2]
[344059420,1733261432557,-150.0,7.54e-05,2]
[344059421,1733261432566,-150.0,7.543e-05,2]
[344059423,1733261432575,-150.0,7.543e-05,2]
[344059425,1733261432585,-150.0,7.55e-05,2]
[344059427,1733261432594,-150.0,7.552e-05,2]
[344059429,1733261432604,-150.0,7.553e-05,2]
[344059431,1733261432613,-150.0,7.558e-05,2]
[344059432,1733261432622,-150.0,7.561e-05,2]
[344059433,1733261432631,-150.0,7.566e-05,2]
[344059434,1733261432640,-150.0,7.566e-05,2]
[344059435,1733261432650,-150.0,7.579e-05,2]
[344059436,1733261432659,-150.0,7.584e-05,2]
[344059437,1733261432668,-150.0,7.59e-05,2]
[344059438,1733261432678,-150.0,7.591e-05,2]
[344059439,1733261432693,-150.0,7.594e-05,2]
[344059440,1733261432702,-150.0,7.594e-05,2]
[344059441,1733261432712,-150.0,7.595e-05,2]
[344059442,1733261432721,-150.0,7.599e-05,2]
[344059443,1733261432731,-2500.0,7.6e-05,2]
[344059444,1733261432741,-2523.72199791,7.6e-05,2]
[344059445,1733261433385,-23519.31570209,7.6e-05,2]
[344059446,1733261433396,-264.3991,7.6e-05,2]
[344059447,1733261433406,-2898.6916,7.6e-05,2]
[344059448,1733261433416,-418.7016,7.6e-05,2]
[344059449,1733261433427,-150.0,7.605e-05,2]
[344059450,1733261433436,-150.0,7.607e-05,2]
[344059451,1733261433446,-150.0,7.609e-05,2]
[344059452,1733261433456,-150.0,7.609e-05,2]
[344059453,1733261433466,-150.0,7.616e-05,2]
[344059454,1733261433476,-150.0,7.622e-05,2]
[344059455,1733261433487,-2680.24645704,7.623e-05,2]
[344059456,1733261433496,-150.0,7.629e-05,2]
[344059457,1733261433508,-150.0,7.63e-05,2]
[344059458,1733261433518,-150.0,7.631e-05,2]
[344059459,1733261433528,-150.0,7.632e-05,2]
[344059460,1733261433538,-150.0,7.636e-05,2]
[344059461,1733261433547,-150.0,7.641e-05,2]
[344059462,1733261433558,-150.0,7.643e-05,2]
[344059463,1733261433567,-150.0,7.659e-05,2]
[344059464,1733261433577,-150.0,7.669e-05,2]
[344059465,1733261433588,-500.0,7.671e-05,2]
[344059466,1733261433598,-150.0,7.672e-05,2]
[344059467,1733261433608,-150.0,7.68e-05,2]
[344059468,1733261433619,-150.0,7.683e-05,2]
[344059469,1733261433629,-150.0,7.684e-05,2]
[344059470,1733261433640,-1000.0,7.69e-05,2]
[344059471,1733261433650,-705.0,7.69e-05,2]
[344059472,1733261433660,-1000.0,7.69e-05,2]
[344059473,1733261433670,-286.2128749,7.69e-05,2]
[344059474,1733261433680,-869.6929827,7.69e-05,2]
[344059475,1733261433691,-150.0,7.695e-05,2]
[344059476,1733261433700,-266.3591929,7.695e-05,2]
[344059477,1733261433711,-808.5592722,7.695e-05,2]
[344059478,1733261433721,-150.0,7.698e-05,2]
[344059479,1733261433731,-150.0,7.698e-05,2]
[344059480,1733261433741,-150.0,7.698e-05,2]
[344059481,1733261433752,-150.0,7.698e-05,2]
[344059482,1733261433763,-150.0,7.698e-05,2]
[344059483,1733261433773,-150.0,7.698e-05,2]
[344059484,1733261433783,-150.0,7.698e-05,2]
[344059485,1733261433793,-150.0,7.698e-05,2]
[344059486,1733261433803,-150.0,7.698e-05,2]
[344059487,1733261433813,-150.0,7.698e-05,2]
[344059488,1733261433823,-150.0,7.698e-05,2]
[344059489,1733261433832,-150.0,7.698e-05,2]
[344059490,1733261433842,-150.0,7.698e-05,2]
[344059491,1733261433852,-150.0,7.698e-05,2]
[344059492,1733261433862,-150.0,7.698e-05,2]
[344059493,1733261433872,-150.0,7.698e-05,2]
[344059494,1733261433882,-150.0,7.698e-05,2]
[344059495,1733261433892,-150.0,7.698e-05,2]
[344059496,1733261433902,-150.0,7.698e-05,2]
[344059497,1733261433913,-150.0,7.699e-05,2]
[344059498,1733261433923,-624.526,7.699e-05,2]
[344059499,1733261433933,-44479.46959867,7.699e-05,2]
[344059500,1733261433943,-1128340.62944298,7.7e-05,2]
[344059501,1733261433970,-287.919,7.7e-05,2]
[344059502,1733261433983,-562.26620255,7.7e-05,2]
[344059503,1733261433995,-3148.89194215,7.7e-05,2]
[344059504,1733261434009,-115574.87151994,7.7e-05,2]
[344059505,1733261434021,-550.99707701,7.7e-05,2]
[344059506,1733261434038,-2182.75526859,7.7e-05,2]
[344059507,1733261434051,-546.21011004,7.7e-05,2]
[344059508,1733261434064,-4158.31803693,7.7e-05,2]
[344059509,1733261434084,-72087.6111374,7.7e-05,2]
[344059510,1733261434097,-25376.95218146,7.7e-05,2]
[344059511,1733261434130,-1005.42936002,7.7e-05,2]
[344059512,1733261434151,-35964.00000005,7.7e-05,2]
[344059523,1733261438299,-773.6322483,7.6e-05,2]
[344059524,1733261438311,-360.13999998,7.6e-05,2]
[344059525,1733261438356,-1272.43035172,7.6e-05,2]
[344059526,1733261438366,-6388.91322537,7.7e-05,2]
[344059527,1733261438391,-442.187745,7.7e-05,2]
[344059528,1733261438402,-2467.59758,7.7e-05,2]
[344059529,1733261438448,-28604.7567541,7.7e-05,2]
[344059539,1733261440068,-20903.14005402,7.7e-05,2]
[344059540,1733261442048,-324.10000008,7.7e-05,2]
[344059541,1733261442060,-905.2599921,7.7e-05,2]
[344059542,1733261442133,-1700.764285,7.7e-05,2]
[344059543,1733261442376,-613.98011104,7.7e-05,2]
[344059544,1733261442389,-10372.7099224,7.7e-05,2]
[344059545,1733261442463,-11041.2292207,7.7e-05,2]
[344059564,1733261443127,-5646.95628534,7.7e-05,2]
[344059565,1733261443140,-2511.2071441,7.7e-05,2]
[344059566,1733261443151,-2509.910106,7.7e-05,2]
[344059567,1733261443168,-7951.20903936,7.7e-05,2]
[344059568,1733261443320,-268.936796,7.7e-05,2]
[344059569,1733261443331,-1091.66958425,7.7e-05,2]
[344059570,1733261443344,-1208.719407,7.7e-05,2]
[344059571,1733261443356,-1281.77860811,7.7e-05,2]
[344059572,1733261443368,-508478.8651829,7.7e-05,2]
[344059573,1733261443380,-2922.79121714,7.7e-05,2]
[344059574,1733261443391,-548.0932,7.7e-05,2]
[344059575,1733261443403,-1149.369636,7.7e-05,2]
[344059576,1733261443415,-4628.727316,7.7e-05,2]
[344059577,1733261443426,-2142.549585,7.7e-05,2]
[344059578,1733261443437,-3629.76000008,7.7e-05,2]
[344059579,1733261443449,-5666.882376,7.7e-05,2]
[344059581,1733261443460,-234108.24292839,7.7e-05,2]
[344059582,1733261443471,-2969.04837331,7.7e-05,2]
[344059583,1733261443511,-5827.1715371,7.7e-05,2]
[344059584,1733261443523,-5700.42961356,7.7e-05,2]
[344059600,1733261446079,-541243.40703579,7.7e-05,2]
[344059601,1733261446091,-74201.75084096,7.7e-05,2]
[344059602,1733261446163,-857.70609959,7.7e-05,2]
[344059603,1733261446317,-58928.18870826,7.7e-05,2]
[344059604,1733261446348,-28427.360531,7.7e-05,2]
[344059605,1733261446359,-88474.108647,7.7e-05,2]
[344059606,1733261446396,-9737.42769999,7.7e-05,2]
[344059614,1733261459767,500.0,7e-05,2]
[344059616,1733261460969,1100.0,7.1e-05,2]
[344059619,1733261487222,2541.08,7.133e-05,2]
[344059620,1733261564545,23900.0,7.086e-05,2]
[344059621,1733261593296,200.0,6.962e-05,2]
[344059622,1733261610546,922.08,6.962e-05,2]
[344059623,1733261619451,192.28,6.962e-05,2]
[344059624,1733261637659,429.31,6.962e-05,2]
[344059625,1733261740743,195.85,6.938e-05,2]
[344059626,1733261769666,1538.11,6.869e-05,2]
[344059627,1733261805316,250.0,6.867e-05,2]
[344059628,1733261811036,1404.77,6.867e-05,2]
[344059629,1733261824499,1821.67,6.867e-05,2]
[344059631,1733261870202,583.27,6.856e-05,2]
[344059632,1733262002100,1135.08,6.828e-05,2]
[344059633,1733262002889,150.0,6.856e-05,2]
[344059634,1733262003105,150.0,6.856e-05,2]
[344059635,1733262003296,150.0,6.856e-05,2]
[344059636,1733262003558,150.0,6.856e-05,2]
[344059637,1733262005415,150.0,6.856e-05,2]
[344059638,1733262005493,150.0,6.856e-05,2]
[344059639,1733262005613,150.0,6.856e-05,2]
[344059640,1733262005698,150.0,6.856e-05,2]
[344059641,1733262005813,237.49,6.856e-05,2]
[344059642,1733262019604,250.0,6.828e-05,2]
[344059644,1733262036985,3000.0,0.0001,14]
[344059645,1733262046689,8765.77,6.882e-05,2]
[344059646,1733262068997,273.23,6.799e-05,2]
[344059647,1733262097397,253.79,0.00023,120]
[344059648,1733262123376,1500.0,6.818e-05,2]
[344059649,1733262204252,500.0,6.851e-05,2]
[344059650,1733262209068,200.0,6.829e-05,2]
[344059652,1733262304116,150.0,6.929e-05,2]
[344059653,1733262313220,150.32274562,6.929e-05,2]
[344059654,1733262320837,150.0,6.929e-05,2]
[344059655,1733262325845,150.0,6.929e-05,2]
[344059656,1733262370353,8185.0,7.163e-05,2]
[344059668,1733262438773,23900.0,6.806e-05,2]
[344059670,1733262448142,600.0,7e-05,2]
[344059671,1733262451613,1200.0,7.1e-05,2]
[344059672,1733262466723,250.0,6.728e-05,2]
[344059674,1733262520756,150.0,0.0001,5]
[344059675,1733262536898,178.96,6.765e-05,2]
[344059696,1733262632847,-6375.57660474,7.2e-05,2]
[344059697,1733262632857,-1800.0,7.2e-05,2]
[344059698,1733262632866,-8960.5362211,7.2e-05,2]
[344059699,1733262632875,-4062.28721416,7.23e-05,2]
[344059700,1733262632886,-999.1669316,7.23e-05,2]
[344059701,1733262632896,-158.8,7.293e-05,2]
[344059702,1733262632905,-1499.5012464,7.3e-05,2]
[344059703,1733262632995,-1000.4987536,7.3e-05,2]
[344059704,1733262633005,-150.0,7.314e-05,2]
[344059705,1733262633015,-365.0,7.37e-05,2]
[344059706,1733262633025,-1285.11898755,7.4e-05,2]
[344059707,1733262633036,-1814.88101245,7.4e-05,2]
[344059708,1733262633046,-150.0,7.479e-05,2]
[344059709,1733262633055,-2930.00018,7.5e-05,2]
[344059710,1733262633065,-600.0,7.5e-05,2]
[344059711,1733262633074,-2549.438,7.599e-05,2]
[344059712,1733262633083,-2500.0,7.6e-05,2]
[344059713,1733262633093,-600.0,7.6e-05,2]
[344059714,1733262633103,-232.39001476,7.658e-05,2]
[344059715,1733262633144,-267.23098524,7.658e-05,2]
[344059716,1733262633154,-150.0,7.672e-05,2]
[344059717,1733262633163,-132.41577773,7.673e-05,2]
[344059718,1733262633175,-212.61286593,7.673e-05,2]
[344059719,1733262633184,-501.15683084,7.673e-05,2]
[344059720,1733262633194,-500.0,7.673e-05,2]
[344059721,1733262633204,-500.0,7.673e-05,2]
[344059722,1733262633213,-673.0361359,7.69e-05,2]
[344059723,1733262633223,-866.89995224,7.69e-05,2]
[344059724,1733262633232,-578.6816805,7.695e-05,2]
[344059725,1733262633243,-150.0,7.698e-05,2]
[344059726,1733262633254,-150.0,7.698e-05,2]
[344059727,1733262633263,-150.0,7.698e-05,2]
[344059728,1733262633273,-150.0,7.698e-05,2]
[344059729,1733262633283,-150.0,7.698e-05,2]
[344059730,1733262633292,-150.0,7.698e-05,2]
[344059731,1733262633302,-150.0,7.698e-05,2]
[344059732,1733262633311,-150.0,7.698e-05,2]
[344059733,1733262633322,-150.0,7.698e-05,2]
[344059734,1733262633332,-150.0,7.698e-05,2]
[344059735,1733262633341,-150.0,7.698e-05,2]
[344059736,1733262633351,-150.0,7.698e-05,2]
[344059737,1733262633361,-150.0,7.698e-05,2]
[344059738,1733262633371,-150.0,7.698e-05,2]
[344059739,1733262633382,-150.0,7.698e-05,2]
[344059740,1733262633391,-150.0,7.698e-05,2]
[344059741,1733262633401,-150.0,7.698e-05,2]
[344059742,1733262633411,-150.0,7.698e-05,2]
[344059743,1733262633420,-156.6936028,7.699e-05,2]
[344059744,1733262633430,-150.0,7.699e-05,2]
[344059745,1733262633440,-150.0,7.699e-05,2]
[344059746,1733262633449,-1327.5513,7.699e-05,2]
[344059747,1733262633459,-1376.99928802,7.699e-05,2]
[344059748,1733262633468,-235.62948377,7.699e-05,2]
[344059749,1733262633478,-1142.27,7.699e-05,2]
[344059750,1733262633487,-471570.14813691,7.7e-05,2]
[344059751,1733262633504,-16085.0,7.7e-05,2]
[344059752,1733262633515,-700.0,7.7e-05,2]
[344059753,1733262633556,-5880.0,7.7e-05,2]
[344059754,1733262633567,-1360.0,7.7e-05,2]
[344059755,1733262633582,-16944.81352,7.7e-05,2]
[344059756,1733262638273,-4872.35309265,7.7e-05,2]
[344059757,1733262638285,-550.39385452,7.7e-05,2]
[344059758,1733262638310,-204879.6595316,7.7e-05,2]
[344059759,1733262638457,-4044.11041027,7.7e-05,2]
[344059760,1733262638469,-417.64938071,7.7e-05,2]
[344059761,1733262638500,-742.02221304,7.7e-05,2]
[344059762,1733262638512,-265.04,7.7e-05,2]
[344059763,1733262638546,-2446.77594491,7.7e-05,2]
[344059765,1733262640227,-803.75337296,7.7e-05,2]
[344059766,1733262640240,-616.14329854,7.7e-05,2]
[344059767,1733262640457,-16356.86801872,7.7e-05,2]
[344059768,1733262640469,-298.40919466,7.7e-05,2]
[344059769,1733262640480,-611.9745145,7.7e-05,2]
[344059770,1733262640491,-680.34315717,7.7e-05,2]
[344059771,1733262640504,-531451.605986,7.7e-05,2]
[344059772,1733262640589,-810.69012315,7.7e-05,2]
[344059822,1733262643635,-2235.45364638,7.7e-05,2]
[344059823,1733262643647,-302142.56610197,7.7e-05,2]
[344059826,1733262643661,-740.36,7.7e-05,2]
[344059828,1733262643674,-570.916685,7.7e-05,2]
[344059829,1733262643684,-657.41777,7.7e-05,2]
[344059831,1733262643695,-360.26241,7.7e-05,2]
[344059832,1733262643782,-3002.57629873,7.7e-05,2]
[344059833,1733262643812,-6755.84993741,7.7e-05,2]
[344059834,1733262643825,-2986.25702338,7.7e-05,2]
[344059835,1733262643836,-2227.19310762,7.7e-05,2]
[344059837,1733262643846,-257.31,7.7e-05,2]
[344059838,1733262643858,-13077.66326327,7.7e-05,2]
[344059839,1733262643884,-266.100001,7.7e-05,2]
[344059840,1733262643894,-12977.73703546,7.7e-05,2]
[344059841,1733262643905,-959.85630344,7.7e-05,2]
[344059844,1733262646378,-761.2146,7.6e-05,2]
[344059845,1733262646387,-7472.1629137,7.7e-05,2]
[344059846,1733262646399,-125513.3814,7.7e-05,2]
[344059847,1733262646419,-1587.82932,7.7e-05,2]
[344059848,1733262646430,-2646.580492,7.7e-05,2]
[344059849,1733262646554,-19640.0,7.7e-05,2]
[344059856,1733262661181,300.0,7e-05,2]
[344059857,1733262663304,700.0,7.1e-05,2]
[344059858,1733262695123,1755.59,7.077e-05,2]
[344059859,1733262710277,250.0,7.077e-05,2]
[344059860,1733262726055,1500.0,7.053e-05,2]
[344059861,1733262821917,500.0,7.023e-05,2]
[344059862,1733262858751,200.0,7.049e-05,2]
[344059864,1733262896225,1503.4,7.076e-05,2]
[344059865,1733262921913,1608.39,7.093e-05,2]
[344059866,1733262923045,5438.54,7.15e-05,2]
[344059867,1733262935441,3695.07,7.093e-05,2]
[344059868,1733262960326,4534.98,7.093e-05,2]
[344059869,1733262963968,-1391.93,0.00016658,30]
[344059870,1733262964044,-216.14,0.00016658,30]
[344059871,1733263000723,935.13,7.093e-05,2]
[344059872,1733263048230,250.0,7.08e-05,2]
[344059873,1733263056975,23900.0,7.08e-05,2]
[344059875,1733263155353,257.55,7.017e-05,2]
[344059876,1733263177511,339.52989502,7e-06,2]
[344059877,1733263191799,345.16,7.017e-05,2]
[344059878,1733263203130,150.0,7e-06,2]
[344059879,1733263210148,403.72,7.024e-05,2]
[344059880,1733263290846,2000.0,6.961e-05,2]
[344059881,1733263375440,1784.88,6.961e-05,2]
[344059882,1733263377902,250.0,6.961e-05,2]
[344059883,1733263470329,500.0,6.913e-05,2]
[344059884,1733263478148,200.0,6.913e-05,2]
[344059885,1733263489986,1500.0,6.913e-05,2]
[344059886,1733263511617,150.0,6.878e-05,2]
[344059887,1733263513651,150.0,6.929e-05,2]
[344059888,1733263521477,150.0,6.929e-05,2]
[344059898,1733263630888,400.0,7e-05,2]
[344059900,1733263634342,900.0,7.1e-05,2]
[344059902,1733263727833,250.0,6.919e-05,2]
[344059904,1733263756984,23900.0,6.943e-05,2]
[344059914,1733263831503,-1300.0,7.2e-05,2]
[344059915,1733263831512,-88972.49999925,7.2e-05,2]
[344059916,1733263831524,-16903.69781251,7.2e-05,2]
[344059917,1733263831535,-14300.0,7.2e-05,2]
[344059918,1733263831559,-1176.547494,7.2e-05,2]
[344059919,1733263831570,-8603.47949028,7.2e-05,2]
[344059920,1733263831624,-3517.6923,7.2e-05,2]
[344059921,1733263831768,-3303.499695,7.2e-05,2]
[344059926,1733263831834,-11705.7166311,7.2e-05,2]
[344059936,1733263831913,-741.72432228,7.2e-05,2]
[344059949,1733263837556,-504.90389552,7.199e-05,2]
[344059950,1733263837566,-231.34844411,7.199e-05,2]
[344059951,1733263837576,-83.74767137,7.2e-05,2]
[344059952,1733263837587,-594.99998642,7.2e-05,2]
[344059953,1733263837620,-286.9,7.2e-05,2]
[344059954,1733263837632,-1275.63470079,7.2e-05,2]
[344059955,1733263837643,-1057.40301469,7.2e-05,2]
[344059994,1733263838164,-1446.14367545,7.2e-05,2]
[344060075,1733263839451,-324.75999986,7.2e-05,2]
[344060076,1733263839463,-262.520001,7.2e-05,2]
[344060078,1733263839541,-1385.46055785,7.2e-05,2]
[344060079,1733263839614,-34292.83466108,7.2e-05,2]
[344060080,1733263839668,-21665.79353836,7.2e-05,2]
[344060081,1733263839680,-13156.26039001,7.2e-05,2]
[344060082,1733263839719,-968.43871744,7.2e-05,2]
[344060085,1733263839731,-3593.36130287,7.2e-05,2]
[344060248,1733263842475,-47760.0,7.2e-05,2]
[344060250,1733263842526,-2221.03701774,7.2e-05,2]
[344060251,1733263842540,-2600.54719662,7.2e-05,2]
[344060252,1733263842552,-340352.92466345,7.2e-05,2]
[344060253,1733263842575,-2020.28402894,7.2e-05,2]
[344060254,1733263842586,-262.47,7.2e-05,2]
[344060255,1733263842597,-65636.51010043,7.2e-05,2]
[344060256,1733263842608,-5243.99999995,7.2e-05,2]
[344060257,1733263842647,-1894.21927628,7.2e-05,2]